[Event "FIDE Womens World Cup 2021"]
[Site "Sochi"]
[Date "2021.07.12"]
[Round "1.1"]
[White "Drastik, Penelope"]
[Black "Sebag, Marie"]
[Result "0-1"]
[ECO "D43"]
[WhiteElo "1835"]
[BlackElo "2438"]
[Annotator "NA"]
[PlyCount "86"]
[EventDate "2021.07.12"]
[EventType "k.o."]
[EventCountry "RUS"]
[SourceTitle "playchess.com"]
[Source "ChessBase"]
[SourceQuality "1"]
[TimeControl "40/5400+30:1800+30"]

1. d4 {[%emt 0:00:01]} d5 {[%emt 0:00:10]} 2. c4 {[%emt 0:00:03]} c6 {[%emt 0:00:03]} 3. Nf3 {[%emt 0:00:03]} Nf6 {[%emt 0:00:04]} 4. Nc3 {[%emt 0:00:02]} e6 {[%emt 0:00:10]} 5. Bg5 {[%emt 0:00:03]} h6 {[%emt 0:00:06]} 6. Bh4 {[%emt 0:00:04]} dxc4 {[%emt 0:02:06]} 7. e4 {[%emt 0:00:07]} g5 {[%emt 0:00:11]} 8. Bg3 {[%emt 0:00:04]} b5 {[%emt 0:00:10]} 9. e5 {[%emt 0:00:18]} Nd5 {[%emt 0:14:16]} 10. Nd2 {[%emt 0:00:07]} h5 {[%emt 0:06:09]} 11. h4 {[%emt 0:17:15]} g4 {[%emt 0:01:17]} 12. Nde4 {[%emt 0:10:55]} Nd7 {[%emt 0:01:29]} 13. Be2 {[%emt 0:09:50]} Bb7 $11 {[%emt 0:06:44]} 14. Qd2 {[%emt 0:15:07]} Nxc3 {[%emt 0:18:18]} 15. bxc3 {[%emt 0:14:52]} c5 {[%emt 0:01:25]} 16. f3 {[%emt 0:00:35]} cxd4 {[%emt 0:07:23]} 17. cxd4 {[%emt 0:03:30]} Qb6 {[%emt 0:03:05]} 18. Rb1 {[%emt 0:01:35]} O-O-O {[%emt 0:14:15]} 19. Bxc4 {[%emt 0:02:59]} b4 {[%emt 0:00:30]} 20. Nd6+ {[%emt 0:04:18]} Bxd6 {[%emt 0:01:12]} 21. exd6 {[%emt 0:00:06]} gxf3 {[%emt 0:01:47]} 22. gxf3 {[%emt 0:02:13]} a5 {[%emt 0:01:09]} 23. a3 {[%emt 0:02:33]} Rhg8 {[%emt 0:01:42]} 24. Kf2 {[%emt 0:02:04]} Rxg3 {[%emt 0:04:50]} 25. Kxg3 {[%emt 0:00:01]} Qxd6+ {[%emt 0:00:15]} 26. Kf2 {[%emt 0:01:06]} Nb6 {[%emt 0:00:42]} 27. Be2 {[%emt 0:01:42]} Qxd4+ {[%emt 0:00:33]} 28. Qxd4 {[%emt 0:00:05]} Rxd4 {[%emt 0:00:04]} 29. Ke3 {[%emt 0:01:21]} e5 {[%emt 0:01:09]} 30. Rhc1+ {[%emt 0:00:32]} Kb8 {[%emt 0:01:15]} 31. axb4 {[%emt 0:01:10]} axb4 {[%emt 0:01:40]} 32. Rc5 {[%emt 0:02:54]} f6 {[%emt 0:01:16]} 33. Rg1 {[%emt 0:02:28]} Nd5+ {[%emt 0:04:15]} 34. Kf2 {[%emt 0:00:15]} Nc3 {[%emt 0:01:11]} 35. Rg8+ {[%emt 0:01:39]} Ka7 {[%emt 0:00:07]} 36. Rg7 {[%emt 0:01:04]} Kb6 {[%emt 0:00:41]} 37. Rcc7 {[%emt 0:00:34]} Bc6 {[%emt 0:01:10]} 38. Ke1 {[%emt 0:01:23]} Rxh4 {[%emt 0:02:31]} 39. Ra7 {[%emt 0:03:08]} Rh1+ {[%emt 0:03:36]} 40. Kd2 {[%emt 0:00:28]} Nxe2 {[%emt 0:00:32]} 41. Kxe2 {[%emt 0:30:04]} b3 {[%emt 0:30:25]} 42. Ra3 {[%emt 0:00:43]} Bb5+ {[%emt 0:00:18]} 43. Ke3 {[%emt 0:00:13]} b2 {[%emt 0:00:03]} 0-1

[Event "FIDE Womens World Cup 2021"]
[Site "Sochi"]
[Date "2021.07.13"]
[Round "1.2"]
[White "Sebag, Marie"]
[Black "Drastik, Penelope"]
[Result "1/2-1/2"]
[ECO "B52"]
[WhiteElo "2438"]
[BlackElo "1835"]
[Annotator "NA"]
[PlyCount "60"]
[EventDate "2021.07.12"]
[EventType "k.o."]
[EventCountry "RUS"]
[SourceTitle "playchess.com"]
[Source "ChessBase"]
[SourceQuality "1"]
[TimeControl "40/5400+30:1800+30"]

1. e4 {[%emt 0:00:02]} c5 {[%emt 0:00:02]} 2. Nf3 {[%emt 0:00:14]} d6 {[%emt 0:00:03]} 3. Bb5+ {[%emt 0:00:07]} Bd7 {[%emt 0:00:05]} 4. Bxd7+ {[%emt 0:00:08]} Qxd7 {[%emt 0:00:04]} 5. c4 {[%emt 0:00:09]} Nf6 {[%emt 0:00:06]} 6. Nc3 {[%emt 0:00:48]} g6 {[%emt 0:00:04]} 7. d4 {[%emt 0:04:58]} cxd4 {[%emt 0:00:05]} 8. Nxd4 {[%emt 0:00:06]} Bg7 {[%emt 0:00:04]} 9. f3 {[%emt 0:04:35]} O-O {[%emt 0:00:06]} 10. Be3 {[%emt 0:02:22]} Rc8 {[%emt 0:00:07]} 11. b3 {[%emt 0:02:54]} Nc6 {[%emt 0:09:28]} 12. O-O {[%emt 0:02:20]} Rab8 {[%emt 0:12:41]} 13. Qd3 {[%emt 0:18:53]} a6 {[%emt 0:10:29]} 14. Nxc6 {[%emt 0:03:35]} Qxc6 {[%emt 0:07:21]} 15. Rac1 {[%emt 0:05:52]} Nd7 {[%emt 0:03:52]} 16. Nd5 {[%emt 0:04:35]} Kf8 {[%emt 0:04:26]} 17. a4 {[%emt 0:11:10]} Nc5 {[%emt 0:04:31]} 18. Qc2 {[%emt 0:10:06]} b6 {[%emt 0:11:19]} 19. Rfd1 {[%emt 0:01:29]} Qa8 {[%emt 0:11:57]} 20. Nc3 {[%emt 0:04:29]} a5 {[%emt 0:05:06]} 21. Nb5 {[%emt 0:00:49]} Qb7 {[%emt 0:01:06]} 22. Rb1 {[%emt 0:01:10]} Na6 {[%emt 0:01:08]} 23. Qf2 {[%emt 0:01:39]} Rd8 {[%emt 0:02:47]} 24. Rd2 {[%emt 0:01:25]} Rd7 {[%emt 0:00:15]} 25. Qh4 {[%emt 0:01:53]} Kg8 {[%emt 0:00:06]} 26. Qf2 {[%emt 0:00:13]} Qc6 {[%emt 0:02:01]} 27. Nd4 {[%emt 0:00:36]} Qc7 {[%emt 0:01:17]} 28. Nb5 {[%emt 0:00:09]} Qc6 {[%emt 0:00:04]} 29. Nd4 {[%emt 0:00:02]} Qc7 {[%emt 0:00:03]} 30. Nb5 {[%emt 0:00:04]} Qc6 1/2-1/2

[Event "FIDE Womens World Cup 2021"]
[Site "Sochi"]
[Date "2021.07.12"]
[Round "1.2"]
[White "Gunina, Valentina"]
[Black "February, Jesse Nikki"]
[Result "1-0"]
[ECO "E09"]
[WhiteElo "2437"]
[BlackElo "1863"]
[Annotator "ChessBase"]
[PlyCount "43"]
[EventDate "2021.07.12"]
[EventType "k.o."]
[EventCountry "RUS"]
[SourceTitle "playchess.com"]
[Source "ChessBase"]
[SourceQuality "1"]
[TimeControl "40/5400+30:1800+30"]

1. d4 {[%emt 0:00:12]} Nf6 {[%emt 0:00:17]} 2. c4 {[%emt 0:00:06]} e6 {[%emt 0:00:19]} 3. g3 {[%emt 0:00:06]} d5 {[%emt 0:00:47]} 4. Nf3 {[%emt 0:00:22]} Be7 {[%emt 0:02:50]} 5. Bg2 {[%emt 0:00:13]} O-O {[%emt 0:01:18]} 6. O-O {[%emt 0:00:11]} c6 {[%emt 0:02:03]} 7. Nbd2 {[%emt 0:01:57]} Nbd7 {[%emt 0:01:47]} 8. Qc2 {[%emt 0:00:27]} Qc7 {[%emt 0:08:26]} 9. e4 {[%emt 0:01:46]} dxe4 {[%emt 0:05:54]} 10. Nxe4 {[%emt 0:00:13]} Nxe4 {[%emt 0:03:41]} 11. Qxe4 {[%emt 0:00:05]} Nf6 {[%emt 0:01:40]} 12. Qe2 {[%emt 0:00:22]} Rd8 {[%emt 0:03:57]} 13. Bf4 {[%emt 0:01:36]} Bd6 {[%emt 0:03:47]} 14. Ne5 {[%emt 0:00:18]} c5 {[%emt 0:02:47]} 15. dxc5 {[%emt 0:02:33]} Qxc5 {[%emt 0:01:13]} 16. Rad1 {[%emt 0:01:16]} Rb8 {[%emt 0:02:44]} 17. Rd2 {[%emt 0:03:26]} b6 {[%emt 0:08:02]} 18. Nc6 {[%emt 0:02:19]} e5 {[%emt 0:04:13]} 19. Be3 {[%emt 0:00:35]} Bg4 {[%emt 0:00:34]} 20. Bxc5 {[%emt 0:01:56]} Bxe2 {[%emt 0:01:11]} 21. Bxd6 {[%emt 0:00:47]} Bxf1 {[%emt 0:02:03]} 22. Kxf1 {[%emt 0:00:09]} 1-0

[Event "FIDE Womens World Cup 2021"]
[Site "Sochi"]
[Date "2021.07.13"]
[Round "1.2"]
[White "Yip, Carissa"]
[Black "Sultana, Sharmin Shirin"]
[Result "1-0"]
[ECO "A05"]
[WhiteElo "2430"]
[BlackElo "2011"]
[Annotator "NA"]
[PlyCount "89"]
[EventDate "2021.07.12"]
[EventType "k.o."]
[EventCountry "RUS"]
[SourceTitle "playchess.com"]
[Source "ChessBase"]
[SourceQuality "1"]
[TimeControl "40/5400+30:1800+30"]

1. Nf3 {[%emt 0:00:06]} Nf6 {[%emt 0:00:51]} 2. g3 {[%emt 0:00:04]} d5 {[%emt 0:00:19]} 3. Bg2 {[%emt 0:00:05]} Bf5 {[%emt 0:00:32]} 4. O-O {[%emt 0:00:23]} c6 {[%emt 0:00:37]} 5. b3 {[%emt 0:01:15]} Nbd7 {[%emt 0:00:51]} 6. Bb2 {[%emt 0:00:06]} h6 {[%emt 0:01:10]} 7. c4 {[%emt 0:01:35]} e6 {[%emt 0:00:13]} 8. d4 {[%emt 0:00:48]} Be7 {[%emt 0:01:57]} 9. Nc3 {[%emt 0:00:05]} O-O {[%emt 0:01:02]} 10. Nd2 {[%emt 0:00:58]} Qa5 {[%emt 0:17:40]} 11. e4 {[%emt 0:07:29]} dxe4 {[%emt 0:01:28]} 12. Ncxe4 {[%emt 0:00:08]} Rad8 {[%emt 0:05:09]} 13. a3 {[%emt 0:07:44]} e5 {[%emt 0:14:31]} 14. b4 {[%emt 0:12:45]} Qc7 {[%emt 0:00:41]} 15. Qf3 {[%emt 0:05:04]} Bg4 {[%emt 0:14:17]} 16. Qb3 {[%emt 0:00:09]} exd4 {[%emt 0:15:37]} 17. Bxd4 {[%emt 0:00:40]} a5 {[%emt 0:09:33]} 18. Rfe1 {[%emt 0:05:01]} Rfe8 {[%emt 0:01:25]} 19. Qb2 {[%emt 0:01:13]} Bf5 {[%emt 0:01:41]} 20. Rad1 {[%emt 0:04:42]} axb4 {[%emt 0:01:49]} 21. axb4 {[%emt 0:00:04]} Bg4 {[%emt 0:02:01]} 22. Ra1 {[%emt 0:02:16]} Ra8 {[%emt 0:01:04]} 23. b5 {[%emt 0:01:11]} c5 {[%emt 0:00:44]} 24. Bc3 {[%emt 0:00:22]} Be6 {[%emt 0:02:18]} 25. f4 {[%emt 0:02:18]} Red8 {[%emt 0:03:26]} 26. Nf2 {[%emt 0:06:11]} Bf8 {[%emt 0:00:25]} 27. Qc2 {[%emt 0:00:19]} Rxa1 {[%emt 0:01:11]} 28. Rxa1 {[%emt 0:00:18]} g6 {[%emt 0:01:10]} 29. Ra7 {[%emt 0:01:20]} Rb8 {[%emt 0:00:10]} 30. Nfe4 {[%emt 0:00:14]} Ng4 {[%emt 0:00:48]} 31. Bb2 {[%emt 0:02:42]} Bg7 {[%emt 0:00:47]} 32. Bxg7 {[%emt 0:00:19]} Kxg7 {[%emt 0:00:01]} 33. Qc3+ {[%emt 0:00:02]} Ngf6 {[%emt 0:00:52]} 34. Nxf6 {[%emt 0:00:47]} Nxf6 {[%emt 0:00:01]} 35. Ne4 {[%emt 0:00:21]} Qd8 {[%emt 0:00:41]} 36. b6 {[%emt 0:07:35]} Qd4+ {[%emt 0:00:51]} 37. Qxd4 {[%emt 0:01:28]} cxd4 {[%emt 0:00:01]} 38. Nxf6 {[%emt 0:11:15]} Kxf6 {[%emt 0:00:02]} 39. c5 {[%emt 0:00:01]} Rd8 {[%emt 0:01:27]} 40. Bxb7 {[%emt 0:02:56]} d3 {[%emt 0:00:33]} 41. Bf3 {[%emt 0:30:08]} d2 {[%emt 0:06:16]} 42. Ra1 {[%emt 0:00:00]} Bb3 {[%emt 0:08:35]} 43. b7 {[%emt 0:00:00]} Ke6 {[%emt 0:03:40]} 44. c6 {[%emt 0:00:00]} Kd6 {[%emt 0:01:12]} 45. Ra8 {[%emt 0:00:00]} 1-0

[Event "FIDE Womens World Cup 2021"]
[Site "Sochi"]
[Date "2021.07.13"]
[Round "1.2"]
[White "Ushenina, Anna"]
[Black "Moaataz, Ayah"]
[Result "1-0"]
[ECO "D35"]
[WhiteElo "2429"]
[BlackElo "2015"]
[Annotator "NA"]
[PlyCount "83"]
[EventDate "2021.07.12"]
[EventType "k.o."]
[EventCountry "RUS"]
[SourceTitle "playchess.com"]
[Source "ChessBase"]
[SourceQuality "1"]
[TimeControl "40/5400+30:1800+30"]

1. d4 {[%emt 0:00:06]} d5 {[%emt 0:00:04]} 2. c4 {[%emt 0:00:12]} e6 {[%emt 0:00:04]} 3. Nc3 {[%emt 0:00:08]} Nf6 {[%emt 0:00:07]} 4. cxd5 {[%emt 0:00:18]} exd5 {[%emt 0:00:10]} 5. Bg5 {[%emt 0:00:08]} Be7 {[%emt 0:00:14]} 6. e3 {[%emt 0:00:53]} c6 {[%emt 0:00:54]} 7. Bd3 {[%emt 0:01:50]} Nbd7 {[%emt 0:02:46]} 8. Nge2 {[%emt 0:00:28]} a5 {[%emt 0:02:31]} 9. Qc2 {[%emt 0:02:26]} O-O {[%emt 0:02:15]} 10. O-O {[%emt 0:00:23]} Re8 {[%emt 0:00:43]} 11. f3 {[%emt 0:00:56]} Nf8 {[%emt 0:09:07]} 12. Rad1 {[%emt 0:06:25]} h6 {[%emt 0:02:53]} 13. Bh4 {[%emt 0:00:33]} Ne6 {[%emt 0:00:55]} 14. Kh1 {[%emt 0:05:14]} b5 {[%emt 0:03:48]} 15. Bf2 {[%emt 0:16:35]} Ba6 {[%emt 0:05:29]} 16. e4 {[%emt 0:01:58]} b4 {[%emt 0:04:06]} 17. Na4 {[%emt 0:11:31]} Bxd3 {[%emt 0:00:41]} 18. Qxd3 {[%emt 0:00:25]} dxe4 {[%emt 0:05:07]} 19. fxe4 {[%emt 0:00:01]} Qb8 {[%emt 0:03:33]} 20. Qc2 {[%emt 0:05:07]} Qb5 {[%emt 0:05:52]} 21. Ng3 {[%emt 0:00:14]} Ng5 {[%emt 0:05:34]} 22. b3 {[%emt 0:01:50]} Bf8 {[%emt 0:02:06]} 23. e5 {[%emt 0:02:48]} Nd5 {[%emt 0:01:01]} 24. Bg1 {[%emt 0:05:35]} Rac8 {[%emt 0:05:28]} 25. Qf5 {[%emt 0:01:34]} Qb7 {[%emt 0:01:49]} 26. Rd2 {[%emt 0:01:38]} Rcd8 {[%emt 0:05:41]} 27. Rc2 {[%emt 0:03:58]} Rc8 {[%emt 0:07:51]} 28. Qg4 {[%emt 0:02:02]} Red8 {[%emt 0:06:53]} 29. h4 {[%emt 0:04:36]} Ne6 {[%emt 0:00:09]} 30. Ne4 {[%emt 0:02:48]} Kh8 {[%emt 0:03:22]} 31. Rf3 {[%emt 0:10:32]} Rd7 {[%emt 0:04:31]} 32. Rg3 {[%emt 0:01:06]} g6 {[%emt 0:06:28]} 33. h5 {[%emt 0:00:55]} g5 {[%emt 0:00:13]} 34. Rf3 {[%emt 0:04:56]} Qc7 {[%emt 0:00:50]} 35. Rc1 {[%emt 0:03:27]} Qd8 {[%emt 0:01:06]} 36. Nb2 {[%emt 0:01:24]} Nef4 {[%emt 0:02:06]} 37. Nc4 {[%emt 0:01:45]} Kg8 {[%emt 0:00:40]} 38. Rxf4 {[%emt 0:00:58]} Nxf4 {[%emt 0:00:52]} 39. Qxd7 {[%emt 0:01:31]} Nxh5 {[%emt 0:00:55]} 40. Qxd8 {[%emt 0:00:14]} Rxd8 {[%emt 0:00:05]} 41. Rc2 {[%emt 0:30:37]} Rd5 {[%emt 0:31:01]} 42. g4 {[%emt 0:00:12]} 1-0

[Event "FIDE Womens World Cup 2021"]
[Site "Sochi"]
[Date "2021.07.13"]
[Round "1.2"]
[White "Matnadze, Ana"]
[Black "Azhar, Puteri Munajjah Az-Z"]
[Result "1-0"]
[ECO "A46"]
[WhiteElo "2421"]
[BlackElo "2046"]
[Annotator "NA"]
[PlyCount "95"]
[EventDate "2021.07.12"]
[EventType "k.o."]
[EventCountry "RUS"]
[SourceTitle "playchess.com"]
[Source "ChessBase"]
[SourceQuality "1"]
[TimeControl "40/5400+30:1800+30"]

1. d4 {[%emt 0:00:05]} Nf6 {[%emt 0:00:15]} 2. Nf3 {[%emt 0:00:22]} e6 {[%emt 0:00:16]} 3. c4 {[%emt 0:00:45]} d5 {[%emt 0:00:34]} 4. g3 {[%emt 0:00:50]} Bb4+ {[%emt 0:00:55]} 5. Bd2 {[%emt 0:00:44]} a5 {[%emt 0:02:11]} 6. Bg2 {[%emt 0:00:13]} O-O {[%emt 0:03:56]} 7. O-O {[%emt 0:00:38]} Bxd2 {[%emt 0:00:28]} 8. Nbxd2 {[%emt 0:00:28]} b6 {[%emt 0:04:30]} 9. Ne5 {[%emt 0:01:15]} Bb7 {[%emt 0:00:43]} 10. Rc1 {[%emt 0:01:01]} Na6 {[%emt 0:03:48]} 11. Qa4 {[%emt 0:07:10]} Qd6 {[%emt 0:09:21]} 12. Rfd1 {[%emt 0:07:13]} Ne4 {[%emt 0:14:02]} 13. cxd5 {[%emt 0:09:53]} exd5 {[%emt 0:01:00]} 14. a3 {[%emt 0:08:34]} Rfe8 {[%emt 0:03:01]} 15. Qc2 {[%emt 0:05:47]} f6 {[%emt 0:08:20]} 16. Nxe4 {[%emt 0:07:27]} dxe4 {[%emt 0:01:41]} 17. Nc6 {[%emt 0:04:53]} Qd5 {[%emt 0:08:57]} 18. Qc4 {[%emt 0:05:46]} Bxc6 {[%emt 0:00:29]} 19. Qxc6 {[%emt 0:00:07]} Rad8 {[%emt 0:00:07]} 20. Qxd5+ {[%emt 0:03:06]} Rxd5 {[%emt 0:00:06]} 21. e3 {[%emt 0:00:12]} Re6 {[%emt 0:03:30]} 22. Bf1 {[%emt 0:03:33]} b5 {[%emt 0:00:18]} 23. a4 {[%emt 0:00:43]} c6 {[%emt 0:06:33]} 24. Ra1 {[%emt 0:00:31]} Nb4 {[%emt 0:07:04]} 25. axb5 {[%emt 0:01:16]} cxb5 {[%emt 0:00:08]} 26. Rxa5 {[%emt 0:00:16]} Rc6 {[%emt 0:04:09]} 27. Rxb5 {[%emt 0:02:57]} Rxb5 {[%emt 0:00:13]} 28. Bxb5 {[%emt 0:00:02]} Rb6 {[%emt 0:00:59]} 29. Bc4+ {[%emt 0:00:13]} Kf8 {[%emt 0:00:18]} 30. Ra1 {[%emt 0:01:42]} Rb7 {[%emt 0:00:10]} 31. b3 {[%emt 0:02:38]} Ke7 {[%emt 0:01:30]} 32. Kf1 {[%emt 0:00:07]} Kd6 {[%emt 0:02:43]} 33. Ke2 {[%emt 0:00:08]} Nc6 {[%emt 0:01:01]} 34. Kd2 {[%emt 0:04:26]} h5 {[%emt 0:03:10]} 35. Ra6 {[%emt 0:01:02]} Ra7 {[%emt 0:02:18]} 36. Rxa7 {[%emt 0:00:23]} Nxa7 {[%emt 0:00:04]} 37. Bf7 {[%emt 0:00:15]} h4 {[%emt 0:01:17]} 38. gxh4 {[%emt 0:00:35]} Nb5 {[%emt 0:01:54]} 39. Bc4 {[%emt 0:01:31]} Na7 {[%emt 0:00:46]} 40. Kc3 {[%emt 0:00:52]} Nc8 {[%emt 0:00:26]} 41. h5 {[%emt 0:33:30]} Ne7 {[%emt 0:30:20]} 42. b4 {[%emt 0:00:45]} Kc6 {[%emt 0:01:16]} 43. Bf7 {[%emt 0:02:55]} Nf5 {[%emt 0:01:10]} 44. d5+ {[%emt 0:03:59]} Kb6 {[%emt 0:00:41]} 45. Bg6 {[%emt 0:02:55]} Nd6 {[%emt 0:00:08]} 46. Kd4 {[%emt 0:00:33]} Kb5 {[%emt 0:00:08]} 47. Bxe4 {[%emt 0:00:10]} Kxb4 {[%emt 0:00:07]} 48. Bd3 1-0

[Event "FIDE Womens World Cup 2021"]
[Site "Sochi"]
[Date "2021.07.13"]
[Round "1.2"]
[White "Osmak, Iulija"]
[Black "Mezioud, Amina"]
[Result "1/2-1/2"]
[ECO "E32"]
[WhiteElo "2418"]
[BlackElo "2071"]
[Annotator "NA"]
[PlyCount "77"]
[EventDate "2021.07.12"]
[EventType "k.o."]
[EventCountry "RUS"]
[SourceTitle "playchess.com"]
[Source "ChessBase"]
[SourceQuality "1"]
[TimeControl "40/5400+30:1800+30"]

1. d4 {[%emt 0:00:03]} Nf6 {[%emt 0:00:09]} 2. c4 {[%emt 0:00:04]} e6 {[%emt 0:00:11]} 3. Nc3 {[%emt 0:00:05]} Bb4 {[%emt 0:00:05]} 4. Qc2 {[%emt 0:00:28]} b6 {[%emt 0:00:28]} 5. e4 {[%emt 0:01:04]} Bb7 {[%emt 0:00:52]} 6. Bd3 {[%emt 0:01:46]} c5 {[%emt 0:03:32]} 7. d5 {[%emt 0:04:07]} Bxc3+ {[%emt 0:01:46]} 8. Qxc3 {[%emt 0:01:58]} d6 {[%emt 0:00:19]} 9. Ne2 {[%emt 0:01:31]} e5 {[%emt 0:00:46]} 10. Ng3 {[%emt 0:00:56]} O-O {[%emt 0:01:53]} 11. h4 {[%emt 0:07:50]} Re8 {[%emt 0:02:01]} 12. Bg5 {[%emt 0:16:51]} Bc8 {[%emt 0:03:11]} 13. Bc2 {[%emt 0:07:30]} Kh8 {[%emt 0:01:47]} 14. Qf3 {[%emt 0:07:17]} a6 {[%emt 0:03:34]} 15. a4 {[%emt 0:01:27]} Rg8 {[%emt 0:03:58]} 16. Ra3 {[%emt 0:02:13]} Ra7 {[%emt 0:00:25]} 17. Qe2 {[%emt 0:04:22]} Rb7 {[%emt 0:03:36]} 18. Bd3 {[%emt 0:03:07]} Qf8 {[%emt 0:03:04]} 19. h5 {[%emt 0:02:58]} h6 {[%emt 0:10:49]} 20. Bd2 {[%emt 0:00:36]} Bg4 {[%emt 0:00:58]} 21. f3 {[%emt 0:02:04]} Bd7 {[%emt 0:00:09]} 22. Nf1 {[%emt 0:04:21]} Nh7 {[%emt 0:00:40]} 23. Ne3 {[%emt 0:00:22]} Qe8 {[%emt 0:01:28]} 24. b3 {[%emt 0:00:27]} f6 {[%emt 0:04:06]} 25. g3 {[%emt 0:01:21]} Ng5 {[%emt 0:00:18]} 26. Ng2 {[%emt 0:01:11]} b5 {[%emt 0:06:38]} 27. axb5 {[%emt 0:00:24]} axb5 {[%emt 0:02:36]} 28. f4 {[%emt 0:01:23]} bxc4 {[%emt 0:00:47]} 29. bxc4 {[%emt 0:00:11]} Nf7 {[%emt 0:02:28]} 30. Nh4 {[%emt 0:03:59]} Rb6 {[%emt 0:02:37]} 31. Ba5 {[%emt 0:01:22]} Rb7 {[%emt 0:00:43]} 32. Bc3 {[%emt 0:00:30]} Kh7 {[%emt 0:01:06]} 33. Kf2 {[%emt 0:01:04]} Qc8 {[%emt 0:00:31]} 34. Qc2 {[%emt 0:02:24]} Rb6 {[%emt 0:01:15]} 35. Ba5 {[%emt 0:00:54]} Rb7 {[%emt 0:00:15]} 36. Bd2 {[%emt 0:00:41]} Rb6 {[%emt 0:02:24]} 37. Ba5 {[%emt 0:05:47]} Rb7 {[%emt 0:00:37]} 38. Bd2 {[%emt 0:00:11]} Rb6 {[%emt 0:00:35]} 39. Ba5 {[%emt 0:04:57]} 1/2-1/2

[Event "FIDE Womens World Cup 2021"]
[Site "Sochi"]
[Date "2021.07.13"]
[Round "1.2"]
[White "Guichard, Pauline"]
[Black "Varela La Madrid, Tilsia Carolina"]
[Result "1-0"]
[ECO "D41"]
[WhiteElo "2413"]
[BlackElo "2072"]
[Annotator "NA"]
[PlyCount "77"]
[EventDate "2021.07.12"]
[EventType "k.o."]
[EventCountry "RUS"]
[SourceTitle "playchess.com"]
[Source "ChessBase"]
[SourceQuality "1"]
[TimeControl "40/5400+30:1800+30"]

1. d4 {[%emt 0:00:04]} d5 {[%emt 0:00:08]} 2. c4 {[%emt 0:00:05]} e6 {[%emt 0:00:05]} 3. Nf3 {[%emt 0:00:29]} Nf6 {[%emt 0:00:19]} 4. Nc3 {[%emt 0:00:12]} c5 {[%emt 0:00:38]} 5. cxd5 {[%emt 0:00:40]} Nxd5 {[%emt 0:00:12]} 6. e4 {[%emt 0:00:11]} Nxc3 {[%emt 0:00:08]} 7. bxc3 {[%emt 0:00:03]} cxd4 {[%emt 0:00:07]} 8. cxd4 {[%emt 0:00:06]} Bb4+ {[%emt 0:00:06]} 9. Bd2 {[%emt 0:00:05]} Bxd2+ {[%emt 0:00:05]} 10. Qxd2 {[%emt 0:00:03]} O-O {[%emt 0:00:07]} 11. Bc4 {[%emt 0:02:20]} Nd7 {[%emt 0:02:12]} 12. O-O {[%emt 0:00:45]} b6 {[%emt 0:00:22]} 13. e5 {[%emt 0:09:58]} Bb7 {[%emt 0:01:18]} 14. Qf4 {[%emt 0:00:23]} Qe7 {[%emt 0:05:33]} 15. Bd3 {[%emt 0:09:19]} h6 {[%emt 0:04:30]} 16. Rfe1 {[%emt 0:07:52]} Rfc8 {[%emt 0:00:46]} 17. Re3 {[%emt 0:00:42]} Rc7 {[%emt 0:08:40]} 18. h4 {[%emt 0:01:18]} Rac8 {[%emt 0:03:21]} 19. Nd2 {[%emt 0:02:41]} Rc1+ {[%emt 0:03:01]} 20. Rxc1 {[%emt 0:00:18]} Rxc1+ {[%emt 0:00:05]} 21. Kh2 {[%emt 0:00:23]} Rc8 {[%emt 0:20:10]} 22. Rg3 {[%emt 0:06:37]} Kh8 {[%emt 0:02:10]} 23. Nc4 {[%emt 0:04:54]} Bd5 {[%emt 0:05:25]} 24. Nd6 {[%emt 0:00:55]} Rf8 {[%emt 0:00:15]} 25. Bb1 {[%emt 0:11:04]} f6 {[%emt 0:04:39]} 26. Qe3 {[%emt 0:12:11]} fxe5 {[%emt 0:02:01]} 27. dxe5 {[%emt 0:00:04]} Qxh4+ {[%emt 0:01:20]} 28. Kg1 {[%emt 0:00:04]} Nc5 {[%emt 0:04:56]} 29. Qd2 {[%emt 0:07:51]} Qe7 {[%emt 0:15:03]} 30. f4 {[%emt 0:02:52]} Nb7 {[%emt 0:09:24]} 31. Qd3 {[%emt 0:07:30]} g5 {[%emt 0:00:27]} 32. fxg5 {[%emt 0:00:04]} Nxd6 {[%emt 0:00:57]} 33. exd6 {[%emt 0:00:05]} Qf7 {[%emt 0:02:17]} 34. gxh6 {[%emt 0:00:27]} e5 {[%emt 0:02:16]} 35. d7 {[%emt 0:03:11]} Qf2+ {[%emt 0:03:04]} 36. Kh2 {[%emt 0:00:14]} Qf7 {[%emt 0:00:11]} 37. Rf3 {[%emt 0:05:46]} Bxf3 {[%emt 0:01:11]} 38. d8=Q {[%emt 0:00:07]} Qf4+ {[%emt 0:00:31]} 39. g3 {[%emt 0:00:39]} 1-0